bitfinex/quotes_SOLUSD_20240930
["timestamp","ask_amount","ask_price","bid_price","bid_amount"]
[1727728546390,6.38,156.74,156.71,15.9525]
[1727728548704,6.38,156.74,156.7,6.3814]
[1727728558318,6.3795,156.76,156.71,6.3809]
[1727728558512,6.3798,156.75,156.71,6.3809]
[1727728559404,1.59502876,156.77,156.7,15.9533]
[1727728559607,6.38,156.74,156.7,22.3348]
[1727728561614,32.2277,156.79,156.71,1.2760238]
[1727728562118,6.3794,156.76,156.72,6.3804]
[1727728563020,6.3798,156.75,156.71,6.3811]
[1727728564621,32.2277,156.79,156.7,15.9533]
[1727728564622,6.3792,156.76,156.72,6.3807]
[1727728564817,32.2277,156.79,156.73,1.27586653]
[1727728564818,16.2825,156.79,156.73,1.27586653]
[1727728565027,16.0392,156.83,156.75,11.26256778]
[1727728565199,22.4159,156.83,156.77,11.26256778]
[1727728565517,22.4159,156.83,156.78,7.65364034]
[1727728566118,6.3768,156.82,156.78,6.3782]
[1727728566495,6.3768,156.82,156.79,1.27543559]
[1727728567819,6.3764,156.83,156.79,1.27543559]
[1727728568322,6.3764,156.83,156.79,7.65323559]
[1727728569912,6.3759,156.84,156.8,6.3773]
[1727728570112,6.3759,156.84,156.81,1.27519457]
[1727728570517,6.3759,156.84,156.8,6.3773]
[1727728571317,1.59397453,156.86,156.78,22.3235]
[1727728571628,6.3768,156.82,156.78,22.3235]
[1727728576716,6.3771,156.81,156.78,15.9455]
[1727728577334,6.3768,156.82,156.78,15.9455]
[1727728577834,6.3768,156.82,156.78,22.3238]
[1727728580630,1.59423999,156.84,156.74,11.26256778]
[1727728580823,6.3779,156.8,156.76,6.3791]
[1727728581005,6.3781,156.79,156.75,22.3275]
[1727728581406,23.776884,156.81,156.73,22.4104]
[1727728581606,6.379,156.77,156.73,28.7905]
[1727728582606,6.3796,156.75,156.72,15.9513]
[1727728582806,6.3796,156.75,156.7,6.3814]
[1727728583230,6.3796,156.75,156.71,7.6570871]
[1727728584111,6.3796,156.75,156.71,6.3811]
[1727728586434,6.3796,156.75,156.72,1.275989]
[1727728586843,6.3796,156.75,156.71,6.3811]
[1727728589037,6.38,156.74,156.7,6.3814]
[1727728590125,6.38,156.74,156.69,12.3359]
[1727728590433,1.59501969,156.73,156.65,20.0]
[1727728590813,1.59501969,156.73,156.64,21.7307]
[1727728590814,6.3815,156.71,156.64,21.7307]
[1727728591521,6.3815,156.71,156.67,6.3827]
[1727728594240,1.59501969,156.73,156.64,21.7307]
[1727728594449,6.3824,156.68,156.64,13.0004]
[1727728594616,6.3821,156.69,156.64,13.0004]
[1727728595434,6.3821,156.69,156.65,6.3835]
[1727728598145,6.3817,156.7,156.66,7.65957642]
[1727728598619,6.3817,156.7,156.66,6.3831]
[1727728601032,6.3817,156.7,156.65,22.3422]
[1727728602126,6.3817,156.7,156.66,1.27646708]
[1727728602517,6.3812,156.71,156.66,1.27646708]
[1727728602722,6.3809,156.72,156.67,6.3824]
[1727728602933,6.3809,156.72,156.68,1.27631811]
[1727728603843,6.3813,156.71,156.68,1.27631811]
[1727728605241,6.3813,156.71,156.67,6.3824]
[1727728605445,6.3813,156.71,156.68,1.27632079]
[1727728605632,6.3813,156.71,156.67,6.3824]
[1727728606145,6.3813,156.71,156.68,1.2763196]
[1727728606325,6.3809,156.72,156.68,7.6585196]
[1727728607639,6.3806,156.73,156.69,7.65827415]
[1727728608051,6.3806,156.73,156.69,1.27627415]
[1727728608220,6.3809,156.72,156.68,6.3822]
[1727728609333,16.4558,156.74,156.65,11.26256778]
[1727728609549,16.4558,156.74,156.64,38.5363]
[1727728609550,22.836,156.74,156.7,6.3813]
[1727728609848,22.8358,156.74,156.7,7.65743517]
[1727728611544,6.3797,156.75,156.7,7.65743517]
[1727728612727,23.776884,156.77,156.7,7.65743517]
[1727728612919,6.38,156.74,156.7,6.3813]
[1727728613119,6.3809,156.72,156.69,15.9547]
[1727728613822,6.3809,156.72,156.66,43.00186778]
[1727728614122,1.59520563,156.75,156.66,22.3405]
[1727728614123,23.776884,156.74,156.66,22.3405]
[1727728614319,6.3819,156.7,156.66,22.3405]
[1727728614948,15.1988,156.73,156.66,15.9574]
[1727728615244,6.382,156.69,156.66,15.9574]
[1727728615419,6.3818,156.7,156.66,22.3406]
[1727728620944,15.1988,156.73,156.68,15.9555]
[1727728621154,6.3803,156.74,156.69,7.65802455]
[1727728621452,32.1253,156.77,156.7,6.3815]
[1727728621760,6.3792,156.76,156.72,6.3806]
[1727728622551,6.3792,156.76,156.71,7.65723583]
[1727728623332,6.3796,156.75,156.71,7.65723583]
[1727728623533,6.3796,156.75,156.71,6.3811]
[1727728623849,1.5950833,156.75,156.7,15.9536]
[1727728624043,6.382,156.69,156.65,6.3835]
[1727728624248,6.3825,156.68,156.64,15.9598]
[1727728624435,6.3823,156.69,156.64,22.3435]
[1727728625138,6.3823,156.69,156.65,6.3836]
[1727728627040,6.3823,156.69,156.64,15.9598]
[1727728627244,7.97824898,156.68,156.64,15.9598]
[1727728627444,6.3834,156.66,156.61,15.9625]
[1727728627648,31.8494,156.72,156.61,15.9625]
[1727728627649,7.97957173,156.65,156.61,15.9625]
[1727728627943,6.3836,156.65,156.61,15.9625]
[1727728628557,1.596051,156.69,156.59,16.4353]
[1727728628757,6.3841,156.64,156.59,6.3857]
[1727728628942,6.3841,156.64,156.58,22.3815]
[1727728629145,6.3841,156.64,156.6,6.3855]
[1727728629343,6.3837,156.65,156.6,6.3855]
[1727728630353,6.3837,156.65,156.61,6.3852]
[1727728632464,6.3827,156.68,156.62,17.23848334]
[1727728632758,6.3827,156.68,156.64,6.384]
[1727728632940,6.3827,156.68,156.64,7.66068334]
[1727728633458,23.776884,156.69,156.64,7.66068334]
[1727728633770,30.158884,156.69,156.64,7.66068334]
[1727728633947,30.158884,156.69,156.65,1.27663991]
[1727728634252,15.8969,156.72,156.64,15.9596]
[1727728634457,6.3817,156.7,156.66,6.3831]
[1727728636348,15.8969,156.72,156.65,6.3835]
[1727728636550,6.3822,156.69,156.65,6.3835]
[1727728636757,6.3822,156.69,156.65,7.66002549]
[1727728636956,6.3822,156.69,156.65,6.3835]
[1727728637563,6.3822,156.69,156.65,7.66002687]
[1727728638351,6.3822,156.69,156.65,6.3835]
[1727728639359,6.3822,156.69,156.65,7.6600267]
[1727728641467,6.3817,156.7,156.65,7.6600267]
[1727728641955,6.3817,156.7,156.66,6.3832]
[1727728642548,6.3817,156.7,156.65,7.6600267]
[1727728643836,6.3817,156.7,156.65,6.3835]
[1727728644353,6.3817,156.7,156.65,7.66002749]
[1727728645258,6.3817,156.7,156.65,6.3835]
[1727728645465,7.97764782,156.69,156.65,6.3835]
[1727728646054,6.382,156.69,156.65,7.66003059]
[1727728648451,6.382,156.69,156.65,6.3835]
[1727728648767,6.382,156.69,156.65,7.66003113]
[1727728649260,15.8969,156.72,156.66,15.9577]
[1727728649465,22.2777,156.72,156.68,6.3823]
[1727728651450,6.3805,156.73,156.69,6.3817]
[1727728651767,31.0417,156.76,156.71,6.3811]
[1727728651768,6.3796,156.75,156.71,6.3811]
[1727728652161,21.4726,156.76,156.71,6.3811]
[1727728654375,21.4726,156.76,156.7,15.9538]
[1727728654577,23.776884,156.78,156.72,15.9515]
[1727728654874,16.3908,156.8,156.69,7.65779884]
[1727728654875,6.3806,156.73,156.69,7.65779884]
[1727728655068,6.3806,156.73,156.69,6.3819]
[1727728655849,7.97636249,156.72,156.68,22.338]
[1727728656051,6.3814,156.71,156.65,15.9584]
[1727728656253,6.3814,156.71,156.67,6.3828]
[1727728656661,6.3808,156.72,156.67,6.3828]
[1727728656862,1.59544828,156.71,156.67,6.3828]
[1727728657074,7.97621743,156.72,156.67,6.3828]
[1727728657456,1.59541743,156.72,156.64,21.7301]
[1727728657661,1.59541743,156.72,156.68,6.382]
[1727728657864,1.59541743,156.72,156.67,15.9561]
[1727728658169,1.59541743,156.72,156.69,6.3819]
[1727728659069,6.3804,156.73,156.69,6.3819]
[1727728661276,1.59541743,156.72,156.69,6.3819]
[1727728661462,6.3804,156.73,156.69,6.3819]
[1727728661663,1.59541769,156.72,156.69,6.3819]
[1727728661863,6.3804,156.73,156.69,6.3819]
[1727728662978,1.595417,156.72,156.69,6.3819]
[1727728663782,6.3804,156.73,156.69,6.3819]
[1727728665060,1.59541379,156.72,156.69,6.3819]
[1727728665260,6.3804,156.73,156.69,6.3819]
[1727728665470,15.4529,156.74,156.71,6.3811]
[1727728665654,1.5951759,156.75,156.67,11.2876839]
[1727728665975,16.3033,156.78,156.67,11.2876839]
[1727728666477,6.3792,156.76,156.72,6.3807]
[1727728666660,1.5951028,156.75,156.72,6.3807]
[1727728669478,7.9747028,156.75,156.71,22.3337]
[1727728669672,1.59515544,156.74,156.71,22.3337]
[1727728669974,6.3796,156.75,156.71,22.3337]
[1727728670680,1.59515041,156.74,156.71,22.3337]
[1727728671076,1.59515041,156.74,156.71,15.9526]
[1727728671077,7.97515041,156.74,156.71,15.9526]
[1727728671264,6.381,156.72,156.68,22.3376]
[1727728671463,1.59540806,156.71,156.68,22.3376]
[1727728671666,15.9473,156.77,156.69,6.3819]
[1727728671667,6.3804,156.73,156.69,6.3819]
[1727728671877,1.59540681,156.72,156.69,6.3819]
[1727728672567,6.3804,156.73,156.69,6.3819]
[1727728676677,6.3801,156.74,156.7,6.3816]
[1727728676855,6.3801,156.74,156.69,1.27632486]
[1727728676856,6.3797,156.75,156.71,6.3811]
[1727728677475,23.776884,156.77,156.7,15.9536]
[1727728677676,16.3033,156.78,156.72,6.3807]
[1727728677677,6.3793,156.76,156.72,6.3807]
[1727728678083,6.3788,156.77,156.73,6.3803]
[1727728678387,16.3033,156.78,156.72,15.9518]
[1727728678585,22.682,156.78,156.74,6.3798]
[1727728679082,6.3787,156.78,156.74,6.3798]
[1727728679683,6.378,156.79,156.75,6.3795]
[1727728680470,1.59481758,156.78,156.75,6.3795]
[1727728681286,1.59481758,156.78,156.74,22.3294]
[1727728683473,6.3784,156.78,156.74,22.3294]
[1727728684183,6.3783,156.79,156.74,15.9496]
[1727728684366,6.3783,156.79,156.75,6.3793]
[1727728686387,6.3783,156.78,156.74,22.3294]
[1727728686574,1.59481917,156.77,156.74,22.3294]
[1727728687088,6.3783,156.78,156.74,22.3294]
[1727728687678,6.378,156.79,156.75,6.3792]
[1727728694297,6.3778,156.8,156.76,6.3789]
[1727728694499,1.59464453,156.8,156.76,15.9476]
[1727728694700,6.3772,156.81,156.77,6.3787]
[1727728696600,7.97212782,156.8,156.76,22.3267]
[1727728696903,1.59459902,156.79,156.76,22.3267]
[1727728698083,6.3776,156.8,156.76,22.3267]
[1727728701002,1.59459622,156.82,156.74,6.2347]
[1727728701003,1.59460007,156.79,156.74,6.2347]
[1727728701186,1.59460007,156.79,156.71,22.5223]
[1727728701187,23.776884,156.78,156.71,22.5223]
[1727728701392,6.3805,156.73,156.7,22.0401]
[1727728701591,17.54205091,156.77,156.7,22.0401]
[1727728701592,6.3801,156.74,156.7,22.0401]
[1727728701795,1.59528127,156.73,156.7,28.4216]
[1727728702288,7.97568127,156.73,156.7,6.0866]
[1727728702485,6.3804,156.73,156.7,6.0866]
[1727728702687,23.776884,156.75,156.7,6.0866]
[1727728702887,6.3801,156.74,156.7,6.0866]
[1727728703088,1.59528628,156.73,156.7,6.0866]
[1727728703296,1.59528628,156.73,156.7,12.4681]
[1727728704594,6.3801,156.74,156.7,12.4681]
[1727728705112,23.776884,156.74,156.71,6.3812]
[1727728705281,15.8334,156.8,156.71,6.3812]
[1727728705282,31.7779,156.8,156.73,6.3801]
[1727728705603,31.7779,156.8,156.71,15.9525]
[1727728705604,6.3792,156.76,156.72,6.3807]
[1727728706505,23.776884,156.79,156.73,15.9505]
[1727728706708,23.776884,156.79,156.71,7.6571682]
[1727728706709,6.3796,156.75,156.71,7.6571682]
[1727728706886,6.3792,156.76,156.72,6.3808]
[1727728709316,23.776884,156.79,156.72,6.3808]
[1727728709608,6.3789,156.77,156.73,6.3803]
[1727728710190,1.59497121,156.76,156.73,6.3803]
[1727728710914,6.3789,156.77,156.73,6.3803]
[1727728711104,6.3788,156.77,156.72,22.3324]
[1727728712107,6.3788,156.77,156.73,6.3803]
[1727728715302,6.38,156.74,156.7,12.4681]
[1727728715603,7.97564878,156.73,156.69,22.3365]
[1727728715804,23.776884,156.79,156.67,22.524]
[1727728715805,6.3812,156.71,156.67,22.524]
[1727728715996,1.59559576,156.7,156.67,22.524]
[1727728716313,7.97729576,156.7,156.66,22.3926]
[1727728716495,6.3817,156.7,156.66,22.3926]
[1727728716811,6.3817,156.7,156.66,28.7755]
[1727728717303,1.59565354,156.69,156.66,22.3403]
[1727728719117,6.3812,156.71,156.66,22.3403]
[1727728719412,1.59568329,156.7,156.66,22.3403]
[1727728721199,6.3812,156.71,156.66,22.3403]
[1727728721200,6.3812,156.71,156.67,6.3827]
[1727728724113,6.381,156.72,156.68,6.3824]
[1727728724903,1.59554959,156.71,156.68,6.3824]
[1727728725404,6.381,156.72,156.68,6.3824]
[1727728727702,1.59551626,156.71,156.68,6.3824]
[1727728728619,6.381,156.72,156.68,6.3824]
[1727728729192,1.59551978,156.71,156.68,6.3824]
[1727728729398,23.776884,156.73,156.71,6.3808]
[1727728729627,6.3803,156.74,156.7,22.3343]
[1727728729925,1.5952958,156.73,156.7,22.3344]
[1727728732522,6.3816,156.7,156.66,22.3409]
[1727728732823,1.5956826,156.69,156.66,22.3409]
[1727728736720,23.776884,156.72,156.66,22.3409]
[1727728736928,6.3813,156.71,156.66,22.3409]
[1727728737223,16.4258,156.73,156.65,12.56422458]
[1727728737401,16.4258,156.73,156.64,38.4164]
[1727728737402,1.59547668,156.72,156.64,38.4164]
[1727728737717,6.3814,156.71,156.67,6.3827]
[1727728737927,1.59564491,156.7,156.67,6.3827]
[1727728742602,6.3814,156.71,156.67,6.3827]
[1727728743225,30.157884,156.72,156.68,6.3824]
[1727728744877,16.4258,156.73,156.69,15.9547]
[1727728745010,15.2446,156.77,156.7,1.27618016]
[1727728745203,6.3792,156.76,156.72,6.3806]
[1727728745512,6.3796,156.75,156.71,22.3333]
[1727728748821,30.156184,156.76,156.72,6.3807]
[1727728749023,23.776884,156.76,156.73,6.3803]
[1727728750129,21.6234,156.77,156.73,6.3803]
[1727728750333,1.59502002,156.76,156.73,6.3803]
[1727728751524,6.3782,156.79,156.75,6.3795]
[1727728751724,23.776884,156.78,156.75,6.3795]
[1727728752456,25.37178472,156.78,156.75,6.3795]
[1727728753328,23.776884,156.78,156.75,6.3795]
[1727728755543,23.776884,156.79,156.76,6.3791]
[1727728755921,25.37161518,156.8,156.76,6.3791]
[1727728756122,30.154484,156.8,156.76,6.3791]
[1727728756550,1.59475296,156.79,156.76,6.3791]
[1727728756931,30.154484,156.8,156.76,6.3791]
[1727728757743,23.776884,156.8,156.76,6.3791]
[1727728758645,23.776884,156.8,156.77,6.3786]
[1727728759340,1.59467543,156.79,156.77,6.3786]
[1727728759534,1.59467543,156.79,156.75,15.9487]
[1727728759746,7.97257543,156.79,156.75,22.3281]
[1727728761056,6.3779,156.79,156.75,22.3281]
[1727728764037,30.154384,156.8,156.76,6.3789]
[1727728764348,23.776884,156.8,156.77,6.3787]
[1727728766354,25.3715598,156.8,156.77,6.3787]
[1727728766557,31.7490598,156.8,156.77,6.3787]
[1727728766755,30.154384,156.8,156.77,6.3787]
[1727728771268,23.776884,156.8,156.77,6.3787]
[1727728771848,6.3772,156.81,156.78,6.3783]
[1727728772048,6.3767,156.82,156.78,6.3783]
[1727728772458,6.3765,156.83,156.79,6.3779]
[1727728774073,23.776884,156.82,156.79,6.3779]
[1727728774886,31.74802673,156.82,156.78,6.3782]
[1727728775071,30.153584,156.82,156.78,6.3782]
[1727728776046,23.776884,156.83,156.8,6.3774]
[1727728776266,30.153384,156.83,156.79,22.3224]
[1727728776478,6.3767,156.82,156.79,15.9446]
[1727728782183,6.3755,156.85,156.81,6.3767]
[1727728782362,6.3759,156.84,156.8,6.3774]
[1727728784364,1.59427493,156.83,156.8,6.3774]
[1727728784756,6.3759,156.84,156.8,6.3774]
[1727728785983,1.59427317,156.83,156.8,6.3774]
[1727728786366,7.97087317,156.83,156.79,22.3225]
[1727728786568,6.3766,156.83,156.79,22.3225]
[1727728792562,7.97098155,156.82,156.79,22.3225]
[1727728792775,6.3767,156.82,156.79,22.3225]
[1727728793858,23.776884,156.85,156.77,6.3786]
[1727728793859,7.97161247,156.81,156.77,6.3786]
[1727728794064,7.97215057,156.8,156.76,22.3262]
[1727728794274,6.3776,156.8,156.76,22.3262]
[1727728796080,6.3772,156.81,156.77,6.3786]
[1727728797365,1.59456756,156.8,156.77,6.3786]
[1727728800584,6.3784,156.78,156.74,12.7309]
[1727728800787,1.59487875,156.77,156.74,6.3796]
[1727728800965,1.59487875,156.77,156.75,6.3795]
[1727728801168,1.59489331,156.78,156.75,6.3795]
[1727728801568,23.776884,156.77,156.75,6.3795]
[1727728801793,1.59494357,156.76,156.75,6.3795]
[1727728801973,23.776884,156.77,156.75,6.3795]
[1727728802174,1.59494331,156.76,156.75,6.3795]
[1727728802576,7.97404331,156.76,156.73,15.9502]
[1727728803793,1.59494331,156.76,156.73,15.9502]
[1727728804003,1.59494331,156.76,156.73,22.3305]
[1727728804184,23.776884,156.75,156.7,22.3078]
[1727728804385,23.776884,156.73,156.7,22.3348]
[1727728804697,23.776884,156.73,156.71,6.3812]
[1727728807781,23.776884,156.73,156.66,49.5931839]
[1727728807782,23.776884,156.75,156.74,6.3799]
[1727728808996,6.3784,156.78,156.74,6.3799]
[1727728809205,23.776884,156.77,156.74,6.3799]
[1727728809370,6.3784,156.78,156.74,6.3799]
[1727728809776,15.3463,156.8,156.71,1.27603622]
[1727728810081,6.1208,156.83,156.78,6.378]
[1727728810403,15.3463,156.84,156.78,6.378]
[1727728810581,1.59470655,156.83,156.78,6.378]
[1727728810783,15.3463,156.84,156.78,6.378]
[1727728810996,1.59470427,156.83,156.78,6.378]
[1727728811298,16.94100796,156.84,156.78,6.378]
[1727728811501,15.3463,156.84,156.78,6.378]
[1727728812096,6.3768,156.82,156.78,6.378]
[1727728812497,15.3463,156.84,156.8,6.3773]
[1727728812799,21.7222,156.84,156.8,6.3773]
[1727728813304,15.3463,156.84,156.79,15.9445]
[1727728813600,6.3763,156.83,156.79,22.3223]
[1727728813993,23.776884,156.82,156.79,22.3223]
[1727728815008,23.776884,156.8,156.77,6.3786]
[1727728815506,23.776884,156.81,156.78,6.3782]
[1727728816100,23.776884,156.81,156.79,6.3779]
[1727728816681,1.59454331,156.8,156.79,6.3779]
[1727728817687,23.776884,156.82,156.79,6.3779]
[1727728817886,1.59454299,156.81,156.79,6.3779]
[1727728818599,23.776884,156.82,156.79,6.3779]
[1727728820005,23.776884,156.83,156.8,6.3774]
[1727728820187,1.59447104,156.82,156.77,6.4484]
[1727728820381,16.4347,156.88,156.8,15.9434]
[1727728820783,16.4347,156.88,156.82,6.3763]
[1727728822177,23.776884,156.85,156.82,6.3763]
[1727728822387,1.59417511,156.84,156.82,6.3763]
[1727728822595,16.4347,156.88,156.8,15.9434]
[1727728822596,6.3748,156.87,156.83,6.3763]
[1727728823507,23.776884,156.86,156.83,6.3763]
[1727728825495,6.3748,156.87,156.84,6.3756]
[1727728825496,23.776884,156.87,156.84,6.3756]
[1727728825699,0.8476434,156.89,156.86,6.375]
[1727728825898,0.8476434,156.89,156.82,31.8829]
[1727728826102,0.8476434,156.89,156.86,15.9374]
[1727728826405,0.8476434,156.89,156.87,6.3746]
[1727728827321,0.8476434,156.89,156.86,22.3123]
[1727728836989,0.8476434,156.89,156.88,6.3742]
[1727728838214,0.8476434,156.89,156.83,6.621]
[1727728838509,0.8476434,156.89,156.85,6.3754]
[1727728839107,23.776884,156.88,156.85,6.3754]
[1727728839418,1.59387133,156.87,156.85,6.3754]
[1727728842807,23.776884,156.88,156.83,6.621]
[1727728843113,23.776884,156.88,156.86,6.3748]
[1727728843519,23.776884,156.88,156.87,6.3747]
[1727728843713,0.8476434,156.89,156.87,6.3747]
[1727728846090,0.8476434,156.89,156.88,6.3742]
[1727728848923,23.776884,156.88,156.86,6.3751]
[1727728849225,1.59380719,156.87,156.86,6.3751]
[1727728849412,2.4414253,156.89,156.86,6.3751]
[1727728851022,2.4414253,156.89,156.85,6.3751]
[1727728851023,23.776884,156.88,156.85,6.3751]
[1727728851196,23.776884,156.88,156.86,6.3749]
[1727728856622,23.776884,156.88,156.87,6.3747]
[1727728857210,23.776884,156.88,156.86,6.3749]
[1727728861529,23.776884,156.86,156.81,15.9423]
[1727728861707,0.8476434,156.89,156.81,15.9423]
[1727728861708,23.776884,156.84,156.81,15.9423]
[1727728861907,1.59430752,156.83,156.81,15.9423]
[1727728862626,1.59430752,156.83,156.81,22.3193]
[1727728864738,23.776884,156.85,156.82,6.3766]
[1727728865835,23.776884,156.85,156.83,6.3762]
[1727728866011,23.776884,156.85,156.84,6.3759]
[1727728866936,23.776884,156.85,156.83,6.3763]
[1727728867115,1.59415886,156.84,156.83,6.3763]
[1727728868310,25.37104286,156.84,156.82,6.3766]
[1727728868510,1.59415886,156.84,156.82,6.3766]
[1727728868736,23.776884,156.83,156.81,22.3193]
[1727728868927,1.59430996,156.82,156.79,6.3778]
[1727728869129,23.776884,156.81,156.79,6.3778]
[1727728869429,23.776884,156.79,156.75,15.9485]
[1727728869619,1.59482744,156.78,156.76,6.3788]
[1727728869823,25.37171144,156.78,156.77,6.3787]
[1727728870029,23.776884,156.78,156.77,6.3787]
[1727728872219,23.776884,156.79,156.75,15.9485]
[1727728872460,23.776884,156.77,156.72,15.9519]
[1727728872647,23.776884,156.75,156.72,22.3326]
[1727728872945,1.59517651,156.74,156.72,22.3326]
[1727728873117,23.776884,156.75,156.73,6.3803]
[1727728873435,23.776884,156.75,156.74,6.3799]
[1727728873619,30.154084,156.81,156.76,6.3791]
[1727728874234,23.776884,156.81,156.77,6.3786]
[1727728874425,16.3922,156.82,156.79,6.3778]
[1727728874619,16.3922,156.82,156.73,27.8724839]
[1727728874939,16.3922,156.82,156.79,6.3779]
[1727728875141,16.3922,156.82,156.78,15.9452]
[1727728875344,6.5819,156.87,156.78,15.9452]
[1727728875630,22.9741,156.87,156.78,15.9452]
[1727728875837,1.59453153,156.86,156.78,15.9452]
[1727728876248,1.59453153,156.86,156.8,6.3774]
[1727728876628,22.9741,156.87,156.8,6.3774]
[1727728878136,23.776884,156.86,156.8,6.3774]
[1727728878330,23.776884,156.84,156.8,6.3774]
[1727728880848,23.776884,156.84,156.81,6.377]
[1727728881038,6.3758,156.85,156.81,6.377]
[1727728881039,23.776884,156.82,156.81,6.377]
[1727728882248,16.3922,156.87,156.83,6.3763]
[1727728883859,23.776884,156.85,156.83,6.3763]
[1727728884154,1.59417758,156.84,156.83,6.3763]
[1727728884657,1.59417603,156.84,156.83,6.3763]
[1727728885850,6.5819,156.91,156.85,6.3755]
[1727728886043,7.2215434,156.89,156.85,6.3755]
[1727728886638,7.9682727,156.88,156.84,22.3152]
[1727728886952,6.3747,156.87,156.83,6.3762]
[1727728887165,1.59417068,156.86,156.83,6.3762]
[1727728887536,23.776884,156.85,156.83,6.3762]
[1727728887736,23.776884,156.86,156.83,6.3762]
[1727728888248,23.776884,156.87,156.83,6.3762]
[1727728889342,23.776884,156.86,156.83,6.3762]
[1727728889543,1.59416579,156.85,156.83,6.3762]
[1727728890367,23.776884,156.86,156.83,6.3762]
[1727728890851,23.776884,156.87,156.83,6.3762]
[1727728893444,23.776884,156.87,156.84,6.3756]
[1727728893858,23.776884,156.88,156.84,6.3756]
[1727728897670,30.151184,156.88,156.84,6.3756]
[1727728898568,23.776884,156.88,156.83,15.9404]
[1727728898749,23.776884,156.88,156.8,7.76856276]
[1727728898946,23.776884,156.88,156.86,6.3749]
[1727728899655,23.776884,156.88,156.85,15.9384]
[1727728899865,23.776884,156.88,156.86,6.3749]
[1727728900169,1.59382289,156.87,156.86,6.3749]
[1727728901059,23.776884,156.88,156.86,6.3749]
[1727728903257,1.59387301,156.87,156.86,6.3749]
[1727728906076,23.776884,156.88,156.86,6.3749]
[1727728907500,23.776884,156.88,156.85,15.9384]
[1727728907665,23.776884,156.88,156.87,6.3747]
[1727728914786,0.8476434,156.89,156.87,6.3747]
[1727728914787,0.8476434,156.89,156.88,6.3742]
[1727728914993,24.6245274,156.89,156.88,6.3742]
[1727728916881,24.6245274,156.89,156.87,22.311]
[1727728919578,0.8476434,156.89,156.87,22.311]
[1727728919974,0.8476434,156.89,156.86,6.3749]
[1727728921578,0.8476434,156.89,156.87,6.3745]
[1727728925481,23.776884,156.88,156.87,6.3745]
[1727728925676,25.37065087,156.88,156.86,22.3124]
[1727728926685,1.59378553,156.87,156.86,22.3124]
[1727728928290,25.37066873,156.88,156.86,22.3124]
[1727728930297,1.59378473,156.87,156.86,22.3124]
[1727728930597,25.37067292,156.88,156.86,22.3124]
[1727728932278,23.776884,156.88,156.86,22.3124]
[1727728938308,23.776884,156.88,156.84,6.3757]
[1727728938309,1.59378583,156.87,156.84,6.3757]
[1727728938509,23.776884,156.86,156.84,6.3758]
[1727728938805,1.59401482,156.85,156.84,6.3758]
[1727728939510,23.776884,156.88,156.85,6.3755]
[1727728939798,23.776884,156.88,156.83,15.94]
[1727728939989,30.151184,156.88,156.84,6.3757]
[1727728940306,23.776884,156.88,156.85,6.3754]
[1727728941993,23.776884,156.86,156.84,6.3757]
[1727728942205,1.59403649,156.85,156.84,6.3757]
[1727728943588,1.59403649,156.85,156.83,15.94]
[1727728944801,23.776884,156.84,156.83,22.3163]
[1727728948803,23.776884,156.85,156.8,15.9432]
[1727728949001,23.776884,156.83,156.8,15.9432]
[1727728949307,1.59442983,156.82,156.8,15.9432]
[1727728949509,1.59442983,156.82,156.8,22.3205]
[1727728950683,23.776884,156.81,156.8,15.9432]
[1727728951104,23.776884,156.81,156.8,22.3207]
[1727728955824,23.776884,156.81,156.77,15.9467]
[1727728955998,23.776884,156.79,156.74,16.2311]
[1727728956204,1.59474668,156.78,156.74,32.1805]
[1727728956423,1.59474668,156.78,156.77,6.3787]
[1727728957599,1.59474668,156.78,156.76,15.9476]